[Event "Titled Tuesday Blitz June 6 Early 2023"]
[White "Machidon, Cristi"]
[Black "Lopez Idarraga, Daniel Eduardo"]
[WhiteFideId "13904590"]
[BlackFideId "4405501"]
[WhiteElo "2355"]
[BlackElo "1980"]
[Result "1-0"]
[Round "10"]
[TimeControl "180+2"]
[Date "2023.06.06"]
[WhiteClock "0:00:14"]
[BlackClock "0:00:01"]
[Board "64"]

1. e4 {[%clk 0:02:57]}  c5 {[%clk 0:02:57]} 2. Nf3 {[%clk 0:02:55]}  Nc6 {[%clk 0:02:57]} 3. Bb5 {[%clk 0:02:54]}  g6 {[%clk 0:02:57]} 4. O-O {[%clk 0:02:53]}  Bg7 {[%clk 0:02:58]} 5. c3 {[%clk 0:02:52]}  Nf6 {[%clk 0:02:57]} 6. Re1 {[%clk 0:02:53]}  O-O {[%clk 0:02:58]} 7. d4 {[%clk 0:02:53]}  cxd4 {[%clk 0:02:57]} 8. cxd4 {[%clk 0:02:54]}  d5 {[%clk 0:02:58]} 9. e5 {[%clk 0:02:54]}  Ne4 {[%clk 0:02:58]} 10. Be3 {[%clk 0:02:49]}  Qb6 {[%clk 0:02:57]} 11. Bxc6 {[%clk 0:02:49]}  bxc6 {[%clk 0:02:49]} 12. b3 {[%clk 0:02:49]}  a5 {[%clk 0:02:44]} 13. Nfd2 {[%clk 0:02:41]}  Nxd2 {[%clk 0:02:34]} 14. Qxd2 {[%clk 0:02:42]}  e6 {[%clk 0:02:34]} 15. Nc3 {[%clk 0:02:42]}  Qb4 {[%clk 0:02:32]} 16. Na4 {[%clk 0:02:33]}  Ba6 {[%clk 0:02:28]} 17. Nc5 {[%clk 0:02:18]}  Bb5 {[%clk 0:02:23]} 18. Qxb4 {[%clk 0:02:17]}  axb4 {[%clk 0:02:22]} 19. Bd2 {[%clk 0:02:18]}  Rfb8 {[%clk 0:02:14]} 20. Bxb4 {[%clk 0:02:13]}  Bf8 {[%clk 0:02:12]} 21. Rec1 {[%clk 0:02:09]}  Bc4 {[%clk 0:01:51]} 22. Bc3 {[%clk 0:01:29]}  Bxc5 {[%clk 0:01:49]} 23. dxc5 {[%clk 0:01:19]}  Bd3 {[%clk 0:01:40]} 24. f3 {[%clk 0:01:19]}  h5 {[%clk 0:01:35]} 25. Kf2 {[%clk 0:01:18]}  Rb5 {[%clk 0:01:29]} 26. Ke3 {[%clk 0:01:17]}  Bf5 {[%clk 0:01:27]} 27. Bd4 {[%clk 0:00:59]}  Rba5 {[%clk 0:01:22]} 28. a4 {[%clk 0:00:56]}  Rb8 {[%clk 0:01:22]} 29. Ra3 {[%clk 0:00:52]}  Kf8 {[%clk 0:01:14]} 30. Kf4 {[%clk 0:00:49]}  Ke7 {[%clk 0:01:13]} 31. h3 {[%clk 0:00:49]}  g5+ {[%clk 0:01:09]} 32. Ke3 {[%clk 0:00:45]}  h4 {[%clk 0:01:05]} 33. Kd2 {[%clk 0:00:43]}  Kd7 {[%clk 0:00:45]} 34. Kc3 {[%clk 0:00:36]}  Rba8 {[%clk 0:00:43]} 35. Be3 {[%clk 0:00:34]}  f6 {[%clk 0:00:39]} 36. Rca1 {[%clk 0:00:24]}  fxe5 {[%clk 0:00:37]} 37. b4 {[%clk 0:00:24]}  d4+ {[%clk 0:00:33]} 38. Kc4 {[%clk 0:00:20]}  dxe3 {[%clk 0:00:34]} 39. bxa5 {[%clk 0:00:19]}  Rxa5 {[%clk 0:00:28]} 40. Rxe3 {[%clk 0:00:20]}  Bc2 {[%clk 0:00:22]} 41. Kb4 {[%clk 0:00:19]}  Ra8 {[%clk 0:00:21]} 42. Rxe5 {[%clk 0:00:19]}  Rb8+ {[%clk 0:00:18]} 43. Kc3 {[%clk 0:00:19]}  Bf5 {[%clk 0:00:18]} 44. a5 {[%clk 0:00:20]}  Kc7 {[%clk 0:00:17]} 45. a6 {[%clk 0:00:20]}  Ra8 {[%clk 0:00:14]} 46. Re2 {[%clk 0:00:21]}  Rd8 {[%clk 0:00:08]} 47. Rd2 {[%clk 0:00:21]}  Rb8 {[%clk 0:00:07]} 48. a7 {[%clk 0:00:21]}  Ra8 {[%clk 0:00:07]} 49. Rd6 {[%clk 0:00:20]}  Kb7 {[%clk 0:00:06]} 50. Kd4 {[%clk 0:00:19]}  Bc2 {[%clk 0:00:04]} 51. Ke5 {[%clk 0:00:19]}  Bb3 {[%clk 0:00:04]} 52. Kf6 {[%clk 0:00:19]}  Bd5 {[%clk 0:00:03]} 53. Rd7+ {[%clk 0:00:18]}  Kc8 {[%clk 0:00:03]} 54. Ke7 {[%clk 0:00:19]}  e5 {[%clk 0:00:02]} 55. Kd6 {[%clk 0:00:16]}  e4 {[%clk 0:00:01]} 56. Rh7 {[%clk 0:00:14]} 1-0


[Site "https://www.chess.com"]

[Event "Titled Tuesday Blitz June 6 Early 2023"]
[White "Ai, Evan"]
[Black "Liu, Casper"]
[WhiteFideId "2094770"]
[BlackFideId "1454153"]
[WhiteElo "1963"]
[BlackElo "2221"]
[Result "1-0"]
[Round "10"]
[TimeControl "180+2"]
[Date "2023.06.06"]
[WhiteClock "0:01:42"]
[BlackClock "0:00:48"]
[Board "65"]

1. e4 {[%clk 0:02:59]}  c5 {[%clk 0:02:59]} 2. Nf3 {[%clk 0:02:59]}  Nf6 {[%clk 0:03:00]} 3. e5 {[%clk 0:02:59]}  Nd5 {[%clk 0:03:01]} 4. d4 {[%clk 0:02:58]}  e6 {[%clk 0:02:59]} 5. c4 {[%clk 0:02:58]}  Nb6 {[%clk 0:02:57]} 6. d5 {[%clk 0:02:53]}  d6 {[%clk 0:02:56]} 7. Nc3 {[%clk 0:02:49]}  dxe5 {[%clk 0:02:56]} 8. Nxe5 {[%clk 0:02:50]}  Bd6 {[%clk 0:02:56]} 9. Nf3 {[%clk 0:02:50]}  O-O {[%clk 0:02:54]} 10. Be2 {[%clk 0:02:49]}  e5 {[%clk 0:02:49]} 11. O-O {[%clk 0:02:42]}  f5 {[%clk 0:02:50]} 12. Bg5 {[%clk 0:02:33]}  Qe8 {[%clk 0:02:42]} 13. Nb5 {[%clk 0:02:32]}  Qg6 {[%clk 0:02:41]} 14. Qd2 {[%clk 0:02:10]}  f4 {[%clk 0:02:27]} 15. Bd3 {[%clk 0:02:09]}  Bf5 {[%clk 0:01:46]} 16. Nh4 {[%clk 0:02:09]}  Qxg5 {[%clk 0:01:45]} 17. Nxf5 {[%clk 0:02:08]}  Rxf5 {[%clk 0:01:30]} 18. Bxf5 {[%clk 0:02:09]}  Qxf5 {[%clk 0:01:31]} 19. Nxd6 {[%clk 0:02:09]}  Qd7 {[%clk 0:01:31]} 20. Ne4 {[%clk 0:02:01]}  Nxc4 {[%clk 0:01:31]} 21. Qc2 {[%clk 0:01:56]}  Nd6 {[%clk 0:01:22]} 22. Nxc5 {[%clk 0:01:55]}  Qf7 {[%clk 0:01:21]} 23. Ne6 {[%clk 0:01:54]}  Nd7 {[%clk 0:01:18]} 24. Qc7 {[%clk 0:01:52]}  Nf5 {[%clk 0:01:12]} 25. Qxb7 {[%clk 0:01:49]}  Re8 {[%clk 0:01:06]} 26. Rac1 {[%clk 0:01:44]}  h6 {[%clk 0:00:54]} 27. Rc8 {[%clk 0:01:43]}  Kh7 {[%clk 0:00:49]} 28. Rxe8 {[%clk 0:01:42]}  Qxe8 {[%clk 0:00:49]} 29. Qxd7 {[%clk 0:01:42]}  Qg6 {[%clk 0:00:48]} 30. Nf8+ {[%clk 0:01:42]} 1-0


[Site "https://www.chess.com"]

[Event "Titled Tuesday Blitz June 6 Early 2023"]
[White "Sharapov, Evgeny"]
[Black "Yonal, Timur"]
[WhiteFideId "14103133"]
[BlackFideId "44115725"]
[WhiteElo "2367"]
[BlackElo "1966"]
[Result "0-1"]
[Round "10"]
[TimeControl "180+2"]
[Date "2023.06.06"]
[WhiteClock "0:00:26"]
[BlackClock "0:00:10"]
[Board "67"]

1. e4 {[%clk 0:02:59]}  c5 {[%clk 0:02:59]} 2. Nf3 {[%clk 0:02:59]}  d6 {[%clk 0:03:00]} 3. d4 {[%clk 0:02:59]}  cxd4 {[%clk 0:03:01]} 4. Nxd4 {[%clk 0:03:00]}  Nf6 {[%clk 0:03:01]} 5. Nc3 {[%clk 0:03:00]}  a6 {[%clk 0:03:02]} 6. g3 {[%clk 0:03:00]}  e5 {[%clk 0:03:02]} 7. Nb3 {[%clk 0:02:59]}  Be7 {[%clk 0:03:01]} 8. Bg2 {[%clk 0:02:59]}  Be6 {[%clk 0:03:00]} 9. O-O {[%clk 0:02:59]}  O-O {[%clk 0:03:00]} 10. a4 {[%clk 0:02:58]}  Nbd7 {[%clk 0:03:00]} 11. Re1 {[%clk 0:02:58]}  Rc8 {[%clk 0:02:58]} 12. Nd2 {[%clk 0:02:58]}  Nc5 {[%clk 0:02:58]} 13. Nf1 {[%clk 0:02:58]}  Qc7 {[%clk 0:02:33]} 14. a5 {[%clk 0:02:56]}  Rfd8 {[%clk 0:01:37]} 15. Ne3 {[%clk 0:02:54]}  b6 {[%clk 0:01:29]} 16. axb6 {[%clk 0:02:51]}  Qxb6 {[%clk 0:01:30]} 17. Ncd5 {[%clk 0:02:47]}  Nxd5 {[%clk 0:01:29]} 18. Nxd5 {[%clk 0:02:47]}  Qb7 {[%clk 0:01:15]} 19. Nxe7+ {[%clk 0:02:38]}  Qxe7 {[%clk 0:01:16]} 20. b4 {[%clk 0:02:36]}  Nb7 {[%clk 0:01:09]} 21. Rxa6 {[%clk 0:02:34]}  Ra8 {[%clk 0:01:07]} 22. Rxa8 {[%clk 0:02:28]}  Rxa8 {[%clk 0:01:08]} 23. Be3 {[%clk 0:02:22]}  Qd7 {[%clk 0:01:07]} 24. c3 {[%clk 0:02:20]}  Ra2 {[%clk 0:00:59]} 25. Re2 {[%clk 0:02:10]}  Ra3 {[%clk 0:00:51]} 26. Qc1 {[%clk 0:01:39]}  Qa4 {[%clk 0:00:45]} 27. Re1 {[%clk 0:01:38]}  Ra2 {[%clk 0:00:37]} 28. Bf1 {[%clk 0:01:20]}  h6 {[%clk 0:00:32]} 29. h4 {[%clk 0:01:19]}  Rc2 {[%clk 0:00:24]} 30. Qa1 {[%clk 0:01:09]}  Ra2 {[%clk 0:00:21]} 31. Qd1 {[%clk 0:01:08]}  Bb3 {[%clk 0:00:19]} 32. Qg4 {[%clk 0:01:04]}  Be6 {[%clk 0:00:15]} 33. Qd1 {[%clk 0:00:28]}  Bb3 {[%clk 0:00:13]} 34. Qd3 {[%clk 0:00:26]}  Kh7 {[%clk 0:00:10]} 0-1


[Site "https://www.chess.com"]

[Event "Titled Tuesday Blitz June 6 Early 2023"]
[White "Tokman, Ariel"]
[Black "Vaglio Munoz, Jaime"]
[WhiteFideId "117420"]
[BlackFideId "6500145"]
[WhiteElo "2263"]
[BlackElo "2199"]
[Result "0-1"]
[Round "10"]
[TimeControl "180+2"]
[Date "2023.06.06"]
[WhiteClock "0:00:05"]
[BlackClock "0:00:35"]
[Board "68"]

1. d4 {[%clk 0:03:00]}  c6 {[%clk 0:02:59]} 2. e4 {[%clk 0:02:59]}  d5 {[%clk 0:02:57]} 3. Nd2 {[%clk 0:03:00]}  dxe4 {[%clk 0:02:57]} 4. Nxe4 {[%clk 0:03:01]}  Nd7 {[%clk 0:02:56]} 5. Qe2 {[%clk 0:03:00]}  Ndf6 {[%clk 0:02:54]} 6. Nxf6+ {[%clk 0:02:55]}  Nxf6 {[%clk 0:02:54]} 7. Be3 {[%clk 0:02:56]}  Bf5 {[%clk 0:02:53]} 8. Nf3 {[%clk 0:02:52]}  e6 {[%clk 0:02:52]} 9. c3 {[%clk 0:02:47]}  Qa5 {[%clk 0:02:52]} 10. g3 {[%clk 0:02:46]}  Be4 {[%clk 0:02:50]} 11. Bg2 {[%clk 0:02:45]}  Be7 {[%clk 0:02:50]} 12. O-O {[%clk 0:02:45]}  O-O {[%clk 0:02:50]} 13. Rfe1 {[%clk 0:02:38]}  h6 {[%clk 0:02:49]} 14. Bf1 {[%clk 0:02:37]}  Qh5 {[%clk 0:02:29]} 15. Nd2 {[%clk 0:02:32]}  Qxe2 {[%clk 0:02:27]} 16. Bxe2 {[%clk 0:02:30]}  Bg6 {[%clk 0:02:26]} 17. Nc4 {[%clk 0:02:29]}  Nd5 {[%clk 0:02:21]} 18. Ne5 {[%clk 0:02:26]}  Bh7 {[%clk 0:02:01]} 19. Bd2 {[%clk 0:02:24]}  Rfd8 {[%clk 0:01:57]} 20. Bh5 {[%clk 0:02:11]}  Rf8 {[%clk 0:01:45]} 21. Nc4 {[%clk 0:01:54]}  Rad8 {[%clk 0:01:42]} 22. Na5 {[%clk 0:01:52]}  Rd7 {[%clk 0:01:41]} 23. Nb3 {[%clk 0:01:39]}  b6 {[%clk 0:01:34]} 24. Bf3 {[%clk 0:01:38]}  Rc8 {[%clk 0:01:33]} 25. Be4 {[%clk 0:01:31]}  Bxe4 {[%clk 0:01:32]} 26. Rxe4 {[%clk 0:01:32]}  c5 {[%clk 0:01:30]} 27. dxc5 {[%clk 0:01:32]}  Bxc5 {[%clk 0:01:30]} 28. Nxc5 {[%clk 0:01:31]}  Rxc5 {[%clk 0:01:31]} 29. Be1 {[%clk 0:01:26]}  b5 {[%clk 0:01:30]} 30. Kf1 {[%clk 0:01:25]}  a5 {[%clk 0:01:30]} 31. Rd4 {[%clk 0:01:14]}  Rb7 {[%clk 0:01:27]} 32. Rad1 {[%clk 0:01:11]}  Kf8 {[%clk 0:01:25]} 33. Ke2 {[%clk 0:01:11]}  Ke8 {[%clk 0:01:23]} 34. f3 {[%clk 0:01:09]}  g5 {[%clk 0:01:22]} 35. Bf2 {[%clk 0:01:09]}  Rc4 {[%clk 0:01:17]} 36. h4 {[%clk 0:01:01]}  Ke7 {[%clk 0:01:14]} 37. hxg5 {[%clk 0:01:00]}  hxg5 {[%clk 0:01:15]} 38. Be3 {[%clk 0:00:49]}  f6 {[%clk 0:01:12]} 39. Rh1 {[%clk 0:00:42]}  Kf8 {[%clk 0:01:06]} 40. Rh8+ {[%clk 0:00:38]}  Kg7 {[%clk 0:01:05]} 41. Re8 {[%clk 0:00:34]}  Kf7 {[%clk 0:01:04]} 42. Ra8 {[%clk 0:00:31]}  a4 {[%clk 0:01:04]} 43. Rh8 {[%clk 0:00:26]}  Kg7 {[%clk 0:01:03]} 44. Rd8 {[%clk 0:00:26]}  a3 {[%clk 0:01:02]} 45. Rxc4 {[%clk 0:00:17]}  axb2 {[%clk 0:00:50]} 46. Rb4 {[%clk 0:00:17]}  Nxb4 {[%clk 0:00:49]} 47. Rd1 {[%clk 0:00:16]}  Nxa2 {[%clk 0:00:48]} 48. Kd3 {[%clk 0:00:09]}  Rd7+ {[%clk 0:00:46]} 49. Bd4 {[%clk 0:00:09]}  e5 {[%clk 0:00:45]} 50. Kc2 {[%clk 0:00:09]}  Nb4+ {[%clk 0:00:40]} 51. Kxb2 {[%clk 0:00:05]}  Nc6 {[%clk 0:00:35]} 0-1


[Site "https://www.chess.com"]

[Event "Titled Tuesday Blitz June 6 Early 2023"]
[White "Papayan, Oleg"]
[Black "Itgelt, Khuyagtsogt"]
[WhiteFideId "4193911"]
[BlackFideId "4902912"]
[WhiteElo "2167"]
[BlackElo "2227"]
[Result "0-1"]
[Round "10"]
[TimeControl "180+2"]
[Date "2023.06.06"]
[WhiteClock "0:00:23"]
[BlackClock "0:00:22"]
[Board "71"]

1. e4 {[%clk 0:02:55]}  e6 {[%clk 0:02:59]} 2. d4 {[%clk 0:02:55]}  d6 {[%clk 0:02:58]} 3. Nc3 {[%clk 0:02:55]}  Nd7 {[%clk 0:02:59]} 4. Nf3 {[%clk 0:02:54]}  h6 {[%clk 0:03:00]} 5. h4 {[%clk 0:02:49]}  a6 {[%clk 0:02:59]} 6. a3 {[%clk 0:02:49]}  b5 {[%clk 0:02:59]} 7. Bd3 {[%clk 0:02:48]}  Bb7 {[%clk 0:03:00]} 8. Qe2 {[%clk 0:02:48]}  Ngf6 {[%clk 0:03:00]} 9. Bf4 {[%clk 0:02:44]}  c5 {[%clk 0:02:59]} 10. dxc5 {[%clk 0:02:40]}  dxc5 {[%clk 0:02:55]} 11. e5 {[%clk 0:02:17]}  Qc7 {[%clk 0:02:34]} 12. Bxb5 {[%clk 0:01:59]}  axb5 {[%clk 0:02:30]} 13. Nxb5 {[%clk 0:02:00]}  Qb8 {[%clk 0:02:31]} 14. O-O-O {[%clk 0:01:14]}  Nd5 {[%clk 0:02:23]} 15. Bg3 {[%clk 0:00:55]}  Ba6 {[%clk 0:02:13]} 16. c4 {[%clk 0:00:55]}  Bxb5 {[%clk 0:02:12]} 17. cxb5 {[%clk 0:00:56]}  N7b6 {[%clk 0:02:09]} 18. Nd2 {[%clk 0:00:35]}  Be7 {[%clk 0:02:04]} 19. Ne4 {[%clk 0:00:35]}  Ra4 {[%clk 0:01:46]} 20. Nd6+ {[%clk 0:00:32]}  Bxd6 {[%clk 0:01:43]} 21. exd6 {[%clk 0:00:33]}  Kd7 {[%clk 0:01:42]} 22. Qh5 {[%clk 0:00:29]}  g6 {[%clk 0:01:31]} 23. Qf3 {[%clk 0:00:30]}  f5 {[%clk 0:01:26]} 24. Be5 {[%clk 0:00:28]}  Rg8 {[%clk 0:01:18]} 25. h5 {[%clk 0:00:26]}  g5 {[%clk 0:01:17]} 26. Kb1 {[%clk 0:00:21]}  Re4 {[%clk 0:01:02]} 27. Rhe1 {[%clk 0:00:18]}  Rxe1 {[%clk 0:01:01]} 28. Rxe1 {[%clk 0:00:18]}  Nc4 {[%clk 0:01:01]} 29. Bc3 {[%clk 0:00:10]}  Qxb5 {[%clk 0:00:59]} 30. Kc1 {[%clk 0:00:08]}  Rb8 {[%clk 0:00:54]} 31. Qe2 {[%clk 0:00:08]}  Nf4 {[%clk 0:00:38]} 32. Qc2 {[%clk 0:00:08]}  Qb3 {[%clk 0:00:36]} 33. Qxb3 {[%clk 0:00:06]}  Rxb3 {[%clk 0:00:37]} 34. Bg7 {[%clk 0:00:06]}  Nxh5 {[%clk 0:00:27]} 35. Bxh6 {[%clk 0:00:07]}  g4 {[%clk 0:00:27]} 36. g3 {[%clk 0:00:04]}  Nf6 {[%clk 0:00:27]} 37. Bf4 {[%clk 0:00:04]}  Nd5 {[%clk 0:00:26]} 38. Rh1 {[%clk 0:00:05]}  Nxf4 {[%clk 0:00:26]} 39. gxf4 {[%clk 0:00:06]}  Rxb2 {[%clk 0:00:26]} 40. Rh7+ {[%clk 0:00:02]}  Kxd6 {[%clk 0:00:26]} 41. a4 {[%clk 0:00:03]}  Ra2 {[%clk 0:00:25]} 42. a5 {[%clk 0:00:04]}  Nxa5 {[%clk 0:00:24]} 43. Kb1 {[%clk 0:00:03]}  Rxf2 {[%clk 0:00:23]} 44. Ra7 {[%clk 0:00:04]}  Nc6 {[%clk 0:00:23]} 45. Ra6 {[%clk 0:00:05]}  Rxf4 {[%clk 0:00:23]} 46. Kc2 {[%clk 0:00:06]}  Rd4 {[%clk 0:00:24]} 47. Kc3 {[%clk 0:00:06]}  e5 {[%clk 0:00:24]} 48. Kb3 {[%clk 0:00:07]}  g3 {[%clk 0:00:24]} 49. Ra8 {[%clk 0:00:08]}  Rg4 {[%clk 0:00:23]} 50. Rg8 {[%clk 0:00:08]}  Rxg8 {[%clk 0:00:23]} 51. Ka4 {[%clk 0:00:09]}  Rb8 {[%clk 0:00:23]} 52. Ka3 {[%clk 0:00:10]}  g2 {[%clk 0:00:24]} 53. Ka4 {[%clk 0:00:11]}  f4 {[%clk 0:00:24]} 54. Ka3 {[%clk 0:00:12]}  f3 {[%clk 0:00:25]} 55. Ka4 {[%clk 0:00:12]}  e4 {[%clk 0:00:26]} 56. Ka3 {[%clk 0:00:13]}  e3 {[%clk 0:00:27]} 57. Ka4 {[%clk 0:00:14]}  f2 {[%clk 0:00:28]} 58. Ka3 {[%clk 0:00:15]}  e2 {[%clk 0:00:29]} 59. Ka4 {[%clk 0:00:16]}  c4 {[%clk 0:00:29]} 60. Ka3 {[%clk 0:00:17]}  c3 {[%clk 0:00:30]} 61. Ka4 {[%clk 0:00:18]}  c2 {[%clk 0:00:31]} 62. Ka3 {[%clk 0:00:19]}  g1=Q {[%clk 0:00:30]} 63. Ka2 {[%clk 0:00:20]}  f1=Q {[%clk 0:00:30]} 64. Ka3 {[%clk 0:00:21]}  e1=Q {[%clk 0:00:31]} 65. Ka2 {[%clk 0:00:21]}  Ne7 {[%clk 0:00:25]} 66. Ka3 {[%clk 0:00:22]}  Rc8 {[%clk 0:00:24]} 67. Ka2 {[%clk 0:00:23]}  c1=Q {[%clk 0:00:24]} 68. Kb3 {[%clk 0:00:24]}  Qc2+ {[%clk 0:00:22]} 69. Ka3 {[%clk 0:00:23]}  Qa5# {[%clk 0:00:22]} 0-1


[Site "https://www.chess.com"]

[Event "Titled Tuesday Blitz June 6 Early 2023"]
[White "Goryachkina, Aleksandra"]
[Black "Estrada Nieto, Julian"]
[WhiteFideId "4147103"]
[BlackFideId "5101018"]
[WhiteElo "2471"]
[BlackElo "2161"]
[Result "1-0"]
[Round "10"]
[TimeControl "180+2"]
[Date "2023.06.06"]
[WhiteClock "0:00:12"]
[BlackClock "0:00:11"]
[Board "72"]

1. e4 {[%clk 0:03:00]}  e5 {[%clk 0:02:59]} 2. Nf3 {[%clk 0:03:00]}  Nc6 {[%clk 0:03:00]} 3. Bc4 {[%clk 0:03:00]}  Bc5 {[%clk 0:03:00]} 4. d3 {[%clk 0:02:58]}  Nf6 {[%clk 0:02:59]} 5. c3 {[%clk 0:02:58]}  d6 {[%clk 0:03:00]} 6. Nbd2 {[%clk 0:02:55]}  a6 {[%clk 0:03:00]} 7. h3 {[%clk 0:02:53]}  Ba7 {[%clk 0:03:00]} 8. Bb3 {[%clk 0:02:48]}  Be6 {[%clk 0:02:48]} 9. Nf1 {[%clk 0:02:42]}  h6 {[%clk 0:02:46]} 10. Ng3 {[%clk 0:02:41]}  Qd7 {[%clk 0:02:45]} 11. Be3 {[%clk 0:02:19]}  Bxe3 {[%clk 0:02:22]} 12. fxe3 {[%clk 0:02:20]}  O-O-O {[%clk 0:02:23]} 13. Bxe6 {[%clk 0:01:55]}  fxe6 {[%clk 0:02:12]} 14. O-O {[%clk 0:01:54]}  d5 {[%clk 0:02:08]} 15. exd5 {[%clk 0:01:02]}  exd5 {[%clk 0:01:38]} 16. d4 {[%clk 0:00:59]}  Qe6 {[%clk 0:01:22]} 17. Qd2 {[%clk 0:00:42]}  e4 {[%clk 0:01:14]} 18. Ne1 {[%clk 0:00:32]}  Rhf8 {[%clk 0:01:06]} 19. b4 {[%clk 0:00:31]}  Ne7 {[%clk 0:00:36]} 20. a4 {[%clk 0:00:29]}  Nd7 {[%clk 0:00:35]} 21. a5 {[%clk 0:00:28]}  Rxf1+ {[%clk 0:00:28]} 22. Nxf1 {[%clk 0:00:28]}  Rf8 {[%clk 0:00:26]} 23. Qe2 {[%clk 0:00:24]}  Qc6 {[%clk 0:00:25]} 24. Rc1 {[%clk 0:00:21]}  Qc4 {[%clk 0:00:24]} 25. Qxc4 {[%clk 0:00:19]}  dxc4 {[%clk 0:00:24]} 26. Nd2 {[%clk 0:00:19]}  Nd5 {[%clk 0:00:23]} 27. Nxc4 {[%clk 0:00:19]}  b5 {[%clk 0:00:20]} 28. axb6 {[%clk 0:00:18]}  N7xb6 {[%clk 0:00:19]} 29. Nxb6+ {[%clk 0:00:17]}  cxb6 {[%clk 0:00:19]} 30. Nc2 {[%clk 0:00:18]}  Nc7 {[%clk 0:00:17]} 31. c4 {[%clk 0:00:18]}  Kd7 {[%clk 0:00:17]} 32. Rf1 {[%clk 0:00:13]}  Rxf1+ {[%clk 0:00:15]} 33. Kxf1 {[%clk 0:00:13]}  a5 {[%clk 0:00:16]} 34. bxa5 {[%clk 0:00:13]}  bxa5 {[%clk 0:00:17]} 35. Ke2 {[%clk 0:00:14]}  Na6 {[%clk 0:00:16]} 36. Kd2 {[%clk 0:00:14]}  Kc6 {[%clk 0:00:14]} 37. Kc3 {[%clk 0:00:14]}  Nc7 {[%clk 0:00:14]} 38. d5+ {[%clk 0:00:12]}  Kc5 {[%clk 0:00:14]} 39. Nd4 {[%clk 0:00:12]}  a4 {[%clk 0:00:13]} 40. Ne6+ {[%clk 0:00:10]}  Nxe6 {[%clk 0:00:12]} 41. dxe6 {[%clk 0:00:11]}  Kd6 {[%clk 0:00:12]} 42. Kb4 {[%clk 0:00:12]}  a3 {[%clk 0:00:12]} 43. Kxa3 {[%clk 0:00:12]}  Kxe6 {[%clk 0:00:12]} 44. Kb4 {[%clk 0:00:12]}  Kd6 {[%clk 0:00:13]} 45. Kb5 {[%clk 0:00:12]}  g5 {[%clk 0:00:12]} 46. Kb6 {[%clk 0:00:13]}  Kd7 {[%clk 0:00:13]} 47. c5 {[%clk 0:00:12]}  h5 {[%clk 0:00:12]} 48. Kb7 {[%clk 0:00:12]}  Ke6 {[%clk 0:00:11]} 49. c6 {[%clk 0:00:12]} 1-0


[Site "https://www.chess.com"]

[Event "Titled Tuesday Blitz June 6 Early 2023"]
[White "i_like_explosions"]
[Black "Gomez Ledo, Roberto Carlos"]
[BlackFideId "3507076"]
[WhiteElo "2457"]
[BlackElo "2378"]
[Result "1-0"]
[Round "10"]
[TimeControl "180+2"]
[Date "2023.06.06"]
[WhiteClock "0:00:10"]
[BlackClock "0:00:06"]
[Board "73"]

1. d4 {[%clk 0:03:00]}  Nf6 {[%clk 0:02:58]} 2. Bg5 {[%clk 0:03:01]}  d5 {[%clk 0:02:57]} 3. Bxf6 {[%clk 0:03:00]}  exf6 {[%clk 0:02:57]} 4. e3 {[%clk 0:03:01]}  c6 {[%clk 0:02:57]} 5. c4 {[%clk 0:03:01]}  dxc4 {[%clk 0:02:56]} 6. Bxc4 {[%clk 0:03:02]}  Bd6 {[%clk 0:02:54]} 7. Nf3 {[%clk 0:03:02]}  O-O {[%clk 0:02:53]} 8. O-O {[%clk 0:03:03]}  f5 {[%clk 0:02:51]} 9. Nc3 {[%clk 0:03:03]}  Nd7 {[%clk 0:02:51]} 10. Qc2 {[%clk 0:03:00]}  Nf6 {[%clk 0:02:50]} 11. Bd3 {[%clk 0:02:54]}  g6 {[%clk 0:02:49]} 12. Rad1 {[%clk 0:02:49]}  Qe7 {[%clk 0:02:49]} 13. a3 {[%clk 0:02:47]}  Re8 {[%clk 0:02:45]} 14. Bc4 {[%clk 0:02:46]}  Ne4 {[%clk 0:02:39]} 15. Nd2 {[%clk 0:02:21]}  a6 {[%clk 0:02:29]} 16. Ndxe4 {[%clk 0:02:00]}  fxe4 {[%clk 0:02:28]} 17. a4 {[%clk 0:02:00]}  h5 {[%clk 0:02:25]} 18. Rfe1 {[%clk 0:02:00]}  h4 {[%clk 0:02:24]} 19. a5 {[%clk 0:01:58]}  h3 {[%clk 0:02:21]} 20. g3 {[%clk 0:01:58]}  Bg4 {[%clk 0:02:21]} 21. Rd2 {[%clk 0:01:58]}  Bf3 {[%clk 0:02:19]} 22. Bf1 {[%clk 0:01:58]}  Bg4 {[%clk 0:02:08]} 23. Qa4 {[%clk 0:01:53]}  Kh7 {[%clk 0:01:56]} 24. Rc1 {[%clk 0:01:49]}  Qf6 {[%clk 0:01:45]} 25. d5 {[%clk 0:01:37]}  c5 {[%clk 0:01:44]} 26. Nxe4 {[%clk 0:01:34]}  Rxe4 {[%clk 0:01:15]} 27. Qxe4 {[%clk 0:01:35]}  Qg5 {[%clk 0:01:13]} 28. Be2 {[%clk 0:01:21]}  f5 {[%clk 0:01:06]} 29. Qd3 {[%clk 0:01:06]}  Qh5 {[%clk 0:01:02]} 30. Bxg4 {[%clk 0:01:01]}  Qxg4 {[%clk 0:01:03]} 31. Rc4 {[%clk 0:00:59]}  f4 {[%clk 0:00:47]} 32. exf4 {[%clk 0:00:45]}  Re8 {[%clk 0:00:42]} 33. Re4 {[%clk 0:00:40]}  Bxf4 {[%clk 0:00:40]} 34. Rde2 {[%clk 0:00:22]}  c4 {[%clk 0:00:34]} 35. Qc2 {[%clk 0:00:16]}  Qf3 {[%clk 0:00:30]} 36. Re7+ {[%clk 0:00:12]}  Rxe7 {[%clk 0:00:29]} 37. Rxe7+ {[%clk 0:00:13]}  Kh6 {[%clk 0:00:29]} 38. Qe4 {[%clk 0:00:09]}  Qd1+ {[%clk 0:00:20]} 39. Qe1 {[%clk 0:00:09]}  Qg4 {[%clk 0:00:16]} 40. Qe2 {[%clk 0:00:08]}  Qg5 {[%clk 0:00:13]} 41. Re4 {[%clk 0:00:08]}  Bd6 {[%clk 0:00:11]} 42. Rg4 {[%clk 0:00:04]}  Qc1+ {[%clk 0:00:10]} 43. Qf1 {[%clk 0:00:04]}  Qxb2 {[%clk 0:00:11]} 44. Rxc4 {[%clk 0:00:05]}  Qb5 {[%clk 0:00:09]} 45. Rh4+ {[%clk 0:00:04]}  Kg7 {[%clk 0:00:09]} 46. Qxb5 {[%clk 0:00:04]}  axb5 {[%clk 0:00:09]} 47. Rxh3 {[%clk 0:00:05]}  Kf6 {[%clk 0:00:09]} 48. Rh4 {[%clk 0:00:05]}  Ke5 {[%clk 0:00:09]} 49. Kf1 {[%clk 0:00:04]}  g5 {[%clk 0:00:06]} 50. Rg4 {[%clk 0:00:04]}  Kxd5 {[%clk 0:00:07]} 51. Ke2 {[%clk 0:00:04]}  b4 {[%clk 0:00:07]} 52. Kd1 {[%clk 0:00:04]}  b3 {[%clk 0:00:07]} 53. Kc1 {[%clk 0:00:04]}  Be7 {[%clk 0:00:07]} 54. Kb1 {[%clk 0:00:05]}  Bf6 {[%clk 0:00:06]} 55. h4 {[%clk 0:00:05]}  gxh4 {[%clk 0:00:06]} 56. gxh4 {[%clk 0:00:06]}  Kc5 {[%clk 0:00:06]} 57. h5 {[%clk 0:00:07]}  Kb5 {[%clk 0:00:06]} 58. h6 {[%clk 0:00:07]}  Kxa5 {[%clk 0:00:06]} 59. h7 {[%clk 0:00:08]}  b5 {[%clk 0:00:06]} 60. Rg8 {[%clk 0:00:09]}  Kb4 {[%clk 0:00:06]} 61. h8=Q {[%clk 0:00:10]}  Bxh8 {[%clk 0:00:06]} 62. Rxh8 {[%clk 0:00:10]} 1-0


[Site "https://www.chess.com"]